fUSD/lending_fUSD_20241129
["ID","MTS","AMOUNT","RATE_DAILY","PERIOD"]
[343694935,1732879839721,-897.49499304,8.35e-05,2]
[343694936,1732879839739,-1161.95293893,8.35e-05,2]
[343694937,1732879839748,-250.0,8.354e-05,2]
[343694938,1732879839758,-742.69,8.355e-05,2]
[343694939,1732879839767,-247.87,8.758e-05,2]
[343694940,1732879839776,-159.19,8.855e-05,2]
[343694941,1732879839786,-150.0,8.873e-05,2]
[343694942,1732879839796,-1735.265,8.874e-05,2]
[343694943,1732879839806,-157.456,8.874e-05,2]
[343694944,1732879839816,-95.93334107,8.875e-05,2]
[343694945,1732879839828,-1032.332,8.875e-05,2]
[343694946,1732879839840,-43202.99465893,8.875e-05,2]
[343694947,1732879839850,-10070.91542356,9e-05,2]
[343694948,1732879839859,-1046.66853284,9e-05,2]
[343694949,1732879839869,-1000.0,9e-05,2]
[343694950,1732879839878,-18566.16246165,9e-05,2]
[343694956,1732879842534,-1063.14,9e-05,2]
[343694958,1732879842546,-2133.40900697,9e-05,2]
[343694959,1732879842558,-14915.44337581,9e-05,2]
[343694961,1732879842572,-5671.02733532,9e-05,2]
[343694962,1732879842584,-485.82,9e-05,2]
[343694963,1732879842599,-52680.70000002,9e-05,2]
[343694964,1732879842611,-2508.44999998,9e-05,2]
[343694965,1732879842623,-9680.98596114,9e-05,2]
[343694966,1732879842736,-5733.13620236,9e-05,2]
[343694967,1732879842747,-3815.54812013,9e-05,2]
[343694968,1732879842758,-851.95145843,9e-05,2]
[343694969,1732879842770,-3937.2444406,9e-05,2]
[343694970,1732879842780,-582.72853,9e-05,2]
[343694973,1732879842951,-1171.47795,9e-05,2]
[343694976,1732879842975,-434.67999985,9e-05,2]
[343694978,1732879842987,-11200.85504994,9e-05,2]
[343694994,1732879845351,-43654.46350632,9e-05,2]
[343694995,1732879845385,-925.15850202,9e-05,2]
[343694996,1732879845530,-3459.00000001,9e-05,2]
[343694997,1732879845542,-8347.33513915,9e-05,2]
[343694998,1732879845582,-5958.06523463,9e-05,2]
[343694999,1732879845722,-483.89521476,9e-05,2]
[343695000,1732879845735,-618.9582,9e-05,2]
[343695001,1732880050998,1870.77115599,0.00011,7]
[343695002,1732880081442,150.0,0.0001,5]
[343695003,1732880132100,972.75,0.0003,120]
[343695004,1732880143136,972.75,0.0003,120]
[343695005,1732880152018,972.75,0.0003,120]
[343695006,1732880159370,972.75,0.0003,120]
[343695008,1732880173550,972.75,0.0003,120]
[343695009,1732880239923,972.75,0.0003,120]
[343695010,1732880247647,972.75,0.0003,120]
[343695011,1732880254584,972.75,0.0003,120]
[343695012,1732880261686,579.29,0.0003,120]
[343695014,1732880411911,250.0,7.957e-05,2]
[343695015,1732880415391,200.0,7.957e-05,2]
[343695016,1732880424104,245.51,7.957e-05,2]
[343695017,1732880469349,155.31,0.00016658,30]
[343695018,1732880556599,50000.0,0.00019,30]
[343695019,1732880597059,566.77289066,7.956e-05,2]
[343695095,1732881031958,-879.78,7.5e-05,2]
[343695096,1732881031971,-281.22,7.5e-05,2]
[343695097,1732881031982,-536.43,7.861e-05,2]
[343695098,1732881032005,-357.27,7.861e-05,2]
[343695099,1732881032014,-68.70341978,7.864e-05,2]
[343695100,1732881032077,-431.29658022,7.864e-05,2]
[343695101,1732881032086,-273.91,7.906e-05,2]
[343695102,1732881032096,-257.55,7.916e-05,2]
[343695103,1732881032106,-187.28,7.924e-05,2]
[343695104,1732881032116,-300.0,7.955e-05,2]
[343695105,1732881032125,-7366.81657455,7.956e-05,2]
[343695106,1732881032139,-15966.41053479,7.956e-05,2]
[343695107,1732881032149,-447.08,7.96e-05,2]
[343695108,1732881032158,-434.77,7.96e-05,2]
[343695109,1732881032168,-1532.56,7.96e-05,2]
[343695110,1732881032178,-868.26,7.968e-05,2]
[343695112,1732881032190,-150.0,7.968e-05,2]
[343695114,1732881032200,-151.53,7.968e-05,2]
[343695116,1732881032210,-355.73,8.061e-05,2]
[343695118,1732881032219,-434.46,8.078e-05,2]
[343695120,1732881032228,-150.0,8.078e-05,2]
[343695122,1732881032237,-826.215,8.178e-05,2]
[343695123,1732881032246,-150.0,8.218e-05,2]
[343695125,1732881032256,-224.05446197,8.219e-05,2]
[343695128,1732881032267,-1275.94553803,8.219e-05,2]
[343695130,1732881032277,-250.0,8.219e-05,2]
[343695132,1732881032286,-873.08,8.219e-05,2]
[343695134,1732881032295,-1000.0,8.219e-05,2]
[343695136,1732881032305,-1073.76,8.219e-05,2]
[343695138,1732881032314,-250.0,8.219e-05,2]
[343695140,1732881032323,-159.19,8.3e-05,2]
[343695142,1732881032333,-169.99,8.579e-05,2]
[343695144,1732881032342,-434.7,8.58e-05,2]
[343695146,1732881032351,-362.86,8.58e-05,2]
[343695148,1732881032361,-434.7,8.58e-05,2]
[343695150,1732881032369,-287.64,8.58e-05,2]
[343695152,1732881032380,-431.89,8.71e-05,2]
[343695153,1732881032390,-434.77,8.72e-05,2]
[343695155,1732881032399,-3709.43,8.767e-05,2]
[343695157,1732881032408,-306.23299805,8.77e-05,2]
[343695160,1732881032420,-128.53700195,8.77e-05,2]
[343695162,1732881032429,-150.0,8.78e-05,2]
[343695164,1732881032438,-557.63495905,8.799e-05,2]
[343695172,1732881032507,-1302.74630594,8.799e-05,2]
[343695174,1732881032519,-1000.09,8.799e-05,2]
[343695180,1732881032562,-519.65730342,8.799e-05,2]
[343695182,1732881032573,-903.9674689,8.799e-05,2]
[343695184,1732881032585,-2127.18364581,8.799e-05,2]
[343695186,1732881032594,-3697.7831,8.8e-05,2]
[343695188,1732881032604,-798.0884,8.8e-05,2]
[343695190,1732881032614,-3116.6484,8.8e-05,2]
[343695192,1732881032623,-5891.265,8.8e-05,2]
[343695194,1732881032634,-5357.0842,8.8e-05,2]
[343695196,1732881032643,-27578.82336437,8.9e-05,2]
[343695198,1732881032655,-28775.1887505,8.9e-05,2]
[343695256,1732881037593,-791.2234965,8.9e-05,2]
[343695259,1732881037654,-961.147724,8.9e-05,2]
[343695260,1732881037849,-1060.3407895,8.9e-05,2]
[343695261,1732881037861,-974.43,8.9e-05,2]
[343695262,1732881037872,-9715.1,8.9e-05,2]
[343695263,1732881037932,-71956.9572742,8.9e-05,2]
[343695264,1732881038000,-40612.00710093,8.9e-05,2]
[343695265,1732881038010,-500.0,8.9e-05,2]
[343695266,1732881038019,-10743.246,8.9e-05,2]
[343695267,1732881038029,-30397.26043211,9e-05,2]
[343695268,1732881038039,-255.0,9.04e-05,2]
[343695269,1732881038048,-169.99,9.051e-05,2]
[343695270,1732881038057,-355.73,9.069e-05,2]
[343695271,1732881038067,-418.25396819,9.224e-05,2]
[343695272,1732881038077,-1000.0,9.247e-05,2]
[343695273,1732881038087,-16266.11931829,9.28e-05,2]
[343695274,1732881038096,-166.16,9.294e-05,2]
[343695275,1732881038106,-2225.0,9.317e-05,2]
[343695276,1732881038115,-169.99,9.523e-05,2]
[343695277,1732881038125,-150.0,9.528e-05,2]
[343695278,1732881038135,-418.25396819,9.584e-05,2]
[343695279,1732881038145,-160.55,9.589e-05,2]
[343695280,1732881038155,-400.0,9.589e-05,2]
[343695281,1732881038165,-2500.0,9.599e-05,2]
[343695282,1732881038175,-150.99,9.67e-05,2]
[343695283,1732881038184,-719551.5603,9.699e-05,2]
[343695284,1732881038194,-100000.0,9.699e-05,2]
[343695285,1732881038204,-1000.0,9.699e-05,2]
[343695286,1732881038213,-38002.9067,9.699e-05,2]
[343695287,1732881038222,-4425.9688,9.699e-05,2]
[343695288,1732881038232,-173.993246,9.721e-05,2]
[343695289,1732881038242,-150.0,9.732e-05,2]
[343695290,1732881038251,-160.55,9.763e-05,2]
[343695291,1732881038261,-150.0,9.764e-05,2]
[343695292,1732881038271,-150.0,9.774e-05,2]
[343695293,1732881038280,-150.0,9.778e-05,2]
[343695294,1732881038290,-150.0,9.797e-05,2]
[343695295,1732881038300,-22545.12815686,9.8e-05,2]
[343695296,1732881038310,-166.16,9.805e-05,2]
[343695297,1732881038319,-150.0,9.812e-05,2]
[343695298,1732881038329,-150.0,9.832e-05,2]
[343695299,1732881038339,-247.87,9.852e-05,2]
[343695300,1732881038348,-150.0,9.856e-05,2]
[343695301,1732881038358,-500.0,9.863e-05,2]
[343695302,1732881038368,-150.60015544,9.865e-05,2]
[343695303,1732881038377,-1349.10864814,9.896e-05,2]
[343695304,1732881038388,-2500.0,9.9e-05,2]
[343695305,1732881038398,-2500.0,9.9e-05,2]
[343695306,1732881038407,-1228.22398603,9.9e-05,2]
[343695307,1732881038416,-160.55,9.938e-05,2]
[343695308,1732881038426,-433.0,9.944e-05,2]
[343695309,1732881038435,-377.45473704,9.96e-05,2]
[343695310,1732881038445,-1257.7057503,9.971e-05,2]
[343695311,1732881038455,-1440.21189408,9.972e-05,2]
[343695312,1732881038465,-1257.7057503,9.972e-05,2]
[343695313,1732881038474,-1440.21189408,9.972e-05,2]
[343695314,1732881038484,-279.71087361,9.973e-05,2]
[343695315,1732881038493,-173.87889891,9.973e-05,2]
[343695316,1732881038502,-500.0,9.973e-05,2]
[343695317,1732881038512,-162.3720924,9.973e-05,2]
[343695318,1732881038522,-302.48579563,9.973e-05,2]
[343695320,1732881038532,-500.0,9.973e-05,2]
[343695321,1732881038541,-500.0,9.973e-05,2]
[343695323,1732881038550,-1440.21189408,9.976e-05,2]
[343695325,1732881038560,-1440.21189408,9.979e-05,2]
[343695327,1732881038569,-95883.21847782,9.98e-05,2]
[343695330,1732881038579,-200.0,9.981e-05,2]
[343695332,1732881038589,-200.0,9.983e-05,2]
[343695333,1732881038598,-200.0,9.985e-05,2]
[343695335,1732881038608,-200.0,9.985e-05,2]
[343695337,1732881038617,-1440.21189408,9.987e-05,2]
[343695338,1732881038629,-1440.21189408,9.989e-05,2]
[343695339,1732881038640,-200.0,9.99e-05,2]
[343695340,1732881038650,-1651.22,9.99e-05,2]
[343695341,1732881038659,-185.956,9.99e-05,2]
[343695342,1732881038668,-5800.0,9.991e-05,2]
[343695343,1732881038678,-1257.7057503,9.992e-05,2]
[343695344,1732881038687,-169.99,9.995e-05,2]
[343695345,1732881038697,-1257.7057503,9.995e-05,2]
[343695346,1732881038706,-1257.7057503,9.998e-05,2]
[343695347,1732881038715,-1257.7057503,9.998e-05,2]
[343695348,1732881038724,-16472.02,9.999e-05,2]
[343695349,1732881038734,-5800.0,9.999e-05,2]
[343695350,1732881038744,-3376.63821659,9.999e-05,2]
[343695351,1732881038753,-1118.36597079,9.999e-05,2]
[343695352,1732881038763,-2000.0,9.999e-05,2]
[343695353,1732881038772,-839.87033396,0.0001,2]
[343695354,1732881038781,-839.87033394,0.0001,2]
[343695355,1732881038791,-839.87033394,0.0001,2]
[343695356,1732881038800,-839.87033394,0.0001,2]
[343695357,1732881038810,-839.87033394,0.0001,2]
[343695358,1732881038819,-839.87033394,0.0001,2]
[343695359,1732881038829,-839.87033394,0.0001,2]
[343695360,1732881038838,-839.87033394,0.0001,2]
[343695361,1732881038847,-839.87033394,0.0001,2]
[343695362,1732881038857,-287302.00124461,0.0001,2]
[343695363,1732881038870,-823.507874,0.0001,2]
[343695364,1732881038882,-14766.03810395,0.0001,2]
[343695367,1732881039613,-760.20306952,0.0001,2]
[343695368,1732881039624,-502.2,0.0001,2]
[343695369,1732881039636,-1619.02,0.0001,2]
[343695370,1732881039705,-25248.18466645,0.0001,2]
[343695371,1732881039799,-3893.20945354,0.0001,2]
[343695372,1732881039810,-1801.6846689,0.0001,2]
[343695373,1732881039822,-6148.11803686,0.0001,2]
[343695374,1732881039832,-1085.14786,0.0001,2]
[343695375,1732881040014,-620.72827212,0.0001,2]
[343695376,1732881040026,-14090.61516679,0.0001,2]
[343695379,1732881042616,-3595.3,0.0001,2]
[343695384,1732881042775,-2688.73984974,0.0001,2]
[343695385,1732881042787,-2991.27840394,0.0001,2]
[343695386,1732881042798,-2992.31744214,0.0001,2]
[343695387,1732881042814,-97150.0,0.0001,2]
[343695388,1732881042862,-610.09901361,0.0001,2]
[343695389,1732881042873,-7958.45091051,0.0001,2]
[343695390,1732881042909,-25272.0495044,0.0001,2]
[343695391,1732881042920,-1927.57789585,0.0001,2]
[343695392,1732881042947,-3597.39654098,0.0001,2]
[343695393,1732881042987,-50130.70468253,0.0001,2]
[343695394,1732881042998,-22962.09038652,0.0001,2]
[343695396,1732881043009,-1942.78,0.0001,2]
[343695397,1732881043021,-2146.22359186,0.0001,2]
[343695437,1732881045730,-365.448,9.999e-05,2]
[343695438,1732881045741,-193.73498539,9.999e-05,2]
[343695439,1732881045751,-713.51772089,0.0001,2]
[343695440,1732881045781,-2060.86813545,0.0001,2]
[343695441,1732881045792,-1747.8,0.0001,2]
[343695442,1732881045804,-4150.0,0.0001,2]
[343695443,1732881045849,-1054.50524257,0.0001,2]
[343695444,1732881045861,-824.3999976,0.0001,2]
[343695445,1732881045942,-414.54,0.0001,2]
[343695446,1732881045974,-1832.68626643,0.0001,2]
[343695454,1732881190727,155.31,0.00016658,30]
[343695459,1732881388389,150.0,0.00026,120]
[343695460,1732881388820,200.0,0.0003,120]
[343695461,1732881389650,200.0,0.0003,120]
[343695462,1732881389922,200.0,0.0003,120]
[343695466,1732881543608,20000.0,0.0003,120]
[343695470,1732881632307,5036.60113608,0.0003,120]
[343695479,1732881872467,155.31,0.00016658,30]
[343695577,1732882231875,-1020.07,8.219e-05,2]
[343695578,1732882231885,-2118.9404,8.6e-05,2]
[343695579,1732882231895,-1320.976,8.624e-05,2]
[343695580,1732882231904,-185.957,8.624e-05,2]
[343695581,1732882231914,-150.0,8.699e-05,2]
[343695582,1732882231923,-5228.20073044,8.7e-05,2]
[343695583,1732882231935,-1292.79926956,8.7e-05,2]
[343695584,1732882231944,-999.1652,8.7e-05,2]
[343695585,1732882231954,-2581.10074764,8.7e-05,2]
[343695586,1732882231996,-882.03185014,8.7e-05,2]
[343695587,1732882232008,-22366.85150222,8.7e-05,2]
[343695588,1732882232018,-100000.0,8.8e-05,2]
[343695589,1732882232028,-2355.2807,8.8e-05,2]
[343695590,1732882232037,-21423.75688514,8.8e-05,2]
[343695591,1732882232048,-72021.19632631,8.8e-05,2]
[343695592,1732882232085,-1955.10508528,8.8e-05,2]
[343695593,1732882232125,-872.49999942,8.8e-05,2]
[343695594,1732882232136,-1007.9823038,8.8e-05,2]
[343695595,1732882232149,-1413.89,8.8e-05,2]
[343695596,1732882232161,-673.5895,8.8e-05,2]
[343695597,1732882232173,-49191.49195832,8.8e-05,2]
[343695600,1732882232225,-3616.24126063,8.8e-05,2]
[343695601,1732882232238,-974.11196,8.8e-05,2]
[343695644,1732882237758,-12259.904,8.8e-05,2]
[343695645,1732882237819,-37516.16851434,8.8e-05,2]
[343695646,1732882237921,-694.58214313,8.8e-05,2]
[343695647,1732882238091,-515931.04036363,8.8e-05,2]
[343695648,1732882238101,-38002.9067,8.8e-05,2]
[343695649,1732882238111,-23900.0,8.832e-05,2]
[343695650,1732882238120,-159.2,8.851e-05,2]
[343695651,1732882238130,-165.55,8.896e-05,2]
[343695652,1732882238140,-250.0,8.926e-05,2]
[343695653,1732882238149,-436.54,8.936e-05,2]
[343695654,1732882238158,-250.0,8.945e-05,2]
[343695655,1732882238167,-1000.0,9.083e-05,2]
[343695656,1732882238176,-434.45,9.541e-05,2]
[343695657,1732882238187,-186.0,9.569e-05,2]
[343695658,1732882238196,-400.0,9.589e-05,2]
[343695659,1732882238205,-160.55,9.589e-05,2]
[343695660,1732882238215,-185.9,9.599e-05,2]
[343695661,1732882238224,-160.55,9.829e-05,2]
[343695662,1732882238234,-1000.0,9.9e-05,2]
[343695663,1732882238248,-742.1876286,9.9e-05,2]
[343695664,1732882238257,-1000.0,9.9e-05,2]
[343695665,1732882238266,-1000.0,9.9e-05,2]
[343695666,1732882238279,-1000.0,9.9e-05,2]
[343695667,1732882238289,-1000.0,9.9e-05,2]
[343695668,1732882238299,-1000.0,9.9e-05,2]
[343695669,1732882238308,-1000.0,9.9e-05,2]
[343695670,1732882238318,-1000.0,9.9e-05,2]
[343695671,1732882238327,-1000.0,9.9e-05,2]
[343695672,1732882238336,-1000.0,9.9e-05,2]
[343695673,1732882238347,-1000.0,9.9e-05,2]
[343695674,1732882238356,-1000.0,9.9e-05,3]
[343695675,1732882238366,-1000.0,9.9e-05,3]
[343695676,1732882238376,-1000.0,9.9e-05,3]
[343695677,1732882238385,-1000.0,9.9e-05,3]
[343695678,1732882238394,-1454.0,9.9e-05,3]
[343695679,1732882238404,-1000.0,9.9e-05,2]
[343695680,1732882238413,-1000.0,9.9e-05,2]
[343695681,1732882238422,-1000.0,9.9e-05,2]
[343695682,1732882238431,-1000.0,9.9e-05,2]
[343695683,1732882238441,-1000.0,9.9e-05,3]
[343695684,1732882238450,-1000.0,9.9e-05,3]
[343695685,1732882238464,-1000.0,9.9e-05,3]
[343695686,1732882238473,-546.0,9.9e-05,2]
[343695687,1732882238482,-13038.94603444,9.9e-05,2]
[343695688,1732882238493,-511.81214025,9.973e-05,2]
[343695689,1732882238502,-159.85848787,9.973e-05,2]
[343695690,1732882238511,-500.0,9.973e-05,2]
[343695691,1732882238520,-500.0,9.973e-05,2]
[343695692,1732882238530,-76707.42920112,9.976e-05,2]
[343695693,1732882238540,-76707.42920112,9.988e-05,2]
[343695694,1732882238550,-995.54370703,9.99e-05,2]
[343695695,1732882238560,-995.54370695,9.99e-05,2]
[343695696,1732882238569,-995.54370695,9.99e-05,2]
[343695697,1732882238578,-995.54370695,9.99e-05,2]
[343695699,1732882238588,-995.54370695,9.99e-05,2]
[343695702,1732882238597,-995.54370695,9.99e-05,2]
[343695704,1732882238607,-995.54370695,9.99e-05,2]
[343695706,1732882238616,-995.54370695,9.99e-05,2]
[343695708,1732882238625,-995.54370695,9.99e-05,2]
[343695710,1732882238635,-76707.42920112,9.991e-05,2]
[343695712,1732882238644,-76707.42920112,9.992e-05,2]
[343695713,1732882238653,-76707.42920112,9.993e-05,2]
[343695714,1732882238662,-76707.42920112,9.994e-05,2]
[343695715,1732882238671,-279.5914927,9.999e-05,2]
[343695716,1732882238681,-362140.11729229,0.0001,2]
[343695717,1732882238690,-36738.02284083,0.0001,2]
[343695718,1732882238700,-167.97406682,0.0001,2]
[343695719,1732882238709,-167.97406678,0.0001,2]
[343695720,1732882238719,-167.97406678,0.0001,2]
[343695721,1732882238728,-167.97406678,0.0001,2]
[343695722,1732882238737,-54809228.99207278,0.0001,2]
[343695724,1732882238751,-366.1106854,0.0001,2]
[343695725,1732882238762,-534.534,0.0001,2]
[343695726,1732882238818,-89168.6110354,0.0001,2]
[343695728,1732882239784,-568.62496208,0.0001,2]
[343695729,1732882239834,-3201.83406375,0.0001,2]
[343695730,1732882239846,-686.34616015,0.0001,2]
[343695731,1732882239856,-3904.24594074,0.0001,2]
[343695754,1732882243519,-3593.6,8.7e-05,2]
[343695757,1732882243531,-3255.7000028,8.7e-05,2]
[343695759,1732882243543,-15017.0175972,8.7e-05,2]
[343695761,1732882243552,-2500.0,8.7e-05,2]
[343695763,1732882243562,-7953.75756279,0.0001,2]
[343695765,1732882243573,-5969.97830574,0.0001,2]
[343695767,1732882243585,-1866.87144981,0.0001,2]
[343695769,1732882243596,-2666.76075963,0.0001,2]
[343695771,1732882243607,-828.25208521,0.0001,2]
[343695773,1732882243618,-17577.95130926,0.0001,2]
[343695778,1732882243648,-731.81832721,0.0001,2]
[343695781,1732882243674,-1624.76615754,0.0001,2]
[343695787,1732882243715,-6183.01027264,0.0001,2]
[343695789,1732882243726,-6950.38360872,0.0001,2]
[343695791,1732882243739,-869.85060329,0.0001,2]
[343695795,1732882243766,-9916.62218294,0.0001,2]
[343695797,1732882243778,-607.88591419,0.0001,2]
[343695799,1732882243789,-27845.53955468,0.0001,2]
[343695805,1732882243832,-929.4949499,0.0001,2]
[343695807,1732882243843,-13474.06252919,0.0001,2]
[343695809,1732882243854,-713.2138286,0.0001,2]
[343695935,1732882245684,-414.720005,0.0001,2]
[343695938,1732882245741,-929.23585745,0.0001,2]
[343695939,1732882245756,-22227.11113461,0.0001,2]
[343695940,1732882245847,-11201.08053416,0.0001,2]
[343695941,1732882245912,-2524.39101118,0.0001,2]
[343695942,1732882245923,-606.15999961,0.0001,2]
[343695943,1732882245934,-346.83282127,0.0001,2]
[343695944,1732882245945,-24350.0,0.0001,2]
[343695945,1732882246067,-2802.983778,0.0001,2]
[343695950,1732882362581,4362.44551091,0.0003,120]
[343695951,1732882579152,155.31,0.00016658,30]
[343695953,1732882838608,500.0,0.0003,120]
[343695959,1732883100185,150.01,7.128e-05,2]
[343695964,1732883145639,160.96988889,7.11e-05,2]
[343695975,1732883276785,155.31,0.00016658,30]
[343696001,1732883431915,-1052.93,8.219e-05,2]
[343696003,1732883431925,-4279.0889,8.6e-05,2]
[343696004,1732883431934,-1105.55326804,8.699e-05,2]
[343696005,1732883431944,-20660.1262,8.7e-05,2]
[343696006,1732883431953,-22206.05092658,8.7e-05,2]
[343696007,1732883432085,-7606.65164346,8.7e-05,2]
[343696008,1732883432097,-4182.49432996,8.7e-05,2]
[343696009,1732883432107,-23900.0,8.819e-05,2]
[343696010,1732883432116,-1000.0,8.823e-05,2]
[343696011,1732883432126,-250.0,8.843e-05,2]
[343696012,1732883432135,-1121.87,8.846e-05,2]
[343696013,1732883432144,-185.9,8.88e-05,2]
[343696014,1732883432153,-479.38,8.907e-05,2]
[343696015,1732883432163,-250.0,8.938e-05,2]
[343696016,1732883432172,-166.16,9.24e-05,2]
[343696017,1732883432181,-250.29,9.462e-05,2]
[343696018,1732883432191,-400.0,9.589e-05,2]
[343696019,1732883432200,-160.55,9.589e-05,2]
[343696020,1732883432209,-3392.05,9.67e-05,2]
[343696021,1732883432219,-12852.96,9.67e-05,2]
[343696022,1732883432228,-633.0,9.715e-05,2]
[343696023,1732883432238,-167.94881,9.722e-05,2]
[343696024,1732883432247,-3255.7001,9.8e-05,2]
[343696025,1732883432257,-152621.7064,9.9e-05,2]
[343696026,1732883432267,-2500.0,9.9e-05,2]
[343696027,1732883432276,-487.9704894,9.9e-05,2]
[343696028,1732883432286,-1000.0,9.9e-05,2]
[343696029,1732883432296,-160.55,9.909e-05,2]
[343696030,1732883432306,-500.0,9.918e-05,2]
[343696031,1732883432316,-1000.0,9.925e-05,2]
[343696032,1732883432326,-3093.6001195,9.97e-05,2]
[343696033,1732883432336,-500.0,9.973e-05,2]
[343696034,1732883432346,-500.0,9.973e-05,2]
[343696035,1732883432356,-3093.6001195,9.977e-05,2]
[343696036,1732883432366,-3093.6001195,9.985e-05,2]
[343696037,1732883432375,-1100.549,9.989e-05,2]
[343696038,1732883432385,-185.9571688,9.989e-05,2]
[343696039,1732883432394,-182.88819356,9.99e-05,2]
[343696040,1732883432404,-182.88819356,9.99e-05,2]
[343696041,1732883432413,-182.88819356,9.99e-05,2]
[343696042,1732883432423,-182.88819356,9.99e-05,2]
[343696043,1732883432433,-182.88819356,9.99e-05,2]
[343696044,1732883432442,-182.88819356,9.99e-05,2]
[343696045,1732883432451,-182.88819356,9.99e-05,2]
[343696046,1732883432460,-182.88819356,9.99e-05,2]
[343696047,1732883432470,-182.88819356,9.99e-05,2]
[343696048,1732883432479,-3093.6001195,9.991e-05,2]
[343696049,1732883432489,-3093.6001195,9.993e-05,2]
[343696050,1732883432498,-279.59149269,9.999e-05,2]
[343696051,1732883432510,-618.08,9.999e-05,2]
[343696052,1732883432520,-2000.0,9.999e-05,2]
[343696053,1732883432530,-3093.6001195,9.999e-05,2]
[343696054,1732883432539,-744232.28740661,0.0001,2]
[343696055,1732883432548,-41118.99752614,0.0001,2]
[343696056,1732883432558,-167.97406682,0.0001,2]
[343696057,1732883432568,-167.97406678,0.0001,2]
[343696058,1732883432577,-167.97406678,0.0001,2]
[343696059,1732883432586,-167.97406678,0.0001,2]
[343696060,1732883432596,-494.18,0.0001,2]
[343696061,1732883432606,-2347781.12769193,0.0001,2]
[343696062,1732883432617,-8139.13491447,0.0001,2]
[343696063,1732883432630,-17170.5,0.0001,2]
[343696064,1732883432641,-12616.0,0.0001,2]
[343696065,1732883432665,-4385.06898983,0.0001,2]
[343696066,1732883432677,-8074.0853725,0.0001,2]
[343696067,1732883432727,-1951.9,0.0001,2]
[343696068,1732883432742,-2519.84998623,0.0001,2]
[343696144,1732883438002,-564.32159591,0.0001,2]
[343696147,1732883438016,-666.48351987,0.0001,2]
[343696149,1732883438028,-2975.25013326,0.0001,2]
[343696150,1732883438104,-15487740.85463979,0.0001,2]
[343696151,1732883438113,-40177796.43581931,0.0001,2]
[343696152,1732883438124,-1778.081445,0.0001,2]
[343696153,1732883438299,-8738.61600217,0.0001,2]
[343696154,1732883438323,-2385.47232555,0.0001,2]
[343696155,1732883438374,-710.8857585,0.0001,2]
[343696156,1732883438388,-253.86640333,0.0001,2]
[343696157,1732883438400,-314.88,0.0001,2]
[343696248,1732883439959,-308.50387123,0.0001,2]
[343696273,1732883443056,-279.5914927,9.999e-05,2]
[343696274,1732883443065,-1790.67881505,0.0001,2]
[343696275,1732883443077,-2463.93242001,0.0001,2]
[343696276,1732883443088,-10513.9141,0.0001,2]
[343696277,1732883443099,-3002.30354606,0.0001,2]
[343696285,1732883443227,-24394.02110393,0.0001,2]
[343696299,1732883443347,-36030.382077,0.0001,2]
[343696301,1732883443358,-24628.09494,0.0001,2]
[343696303,1732883443369,-48761.5,0.0001,2]
[343696305,1732883443380,-1437.07240652,0.0001,2]
[343696310,1732883443435,-487.97186216,0.0001,2]
[343696448,1732883446797,-527.51546267,0.0001,2]
[343696449,1732883448970,150.0,7e-05,2]
[343696450,1732883448991,150.0,7e-05,2]
[343696451,1732883449011,150.0,7e-05,2]
[343696452,1732883449035,150.0,7e-05,2]
[343696453,1732883449056,150.0,7e-05,2]
[343696454,1732883449077,150.0,7e-05,2]
[343696455,1732883449097,150.0,7e-05,2]
[343696456,1732883449119,285.47232555,7e-05,2]
[343696457,1732883449145,10853.52697445,7e-05,2]
[343696458,1732883546285,-400.0,9.701e-05,2]
[343696460,1732883572424,-300.0,9.799e-05,2]
[343696461,1732883582777,-508.44,9.799e-05,2]
[343696462,1732883583219,-278.26914081,9.799e-05,2]
[343696465,1732884308451,10000.0,0.0003,120]
[343696501,1732884632217,-388.79,8.219e-05,2]
[343696502,1732884632716,-372.9696363,8.219e-05,2]
[343696503,1732884632779,-238.5203637,8.219e-05,2]
[343696504,1732884632789,-1235.031127,8.615e-05,2]
[343696505,1732884632799,-508.77713041,8.659e-05,2]
[343696506,1732884632952,-1800.22286959,8.659e-05,2]
[343696507,1732884632962,-274.59,8.885e-05,2]